[Event "Titled Tuesday Blitz November 07 Late 2023"]
[White "Ismayilova, Khanim"]
[Black "Pace, Christopher"]
[WhiteFideId "13429019"]
[BlackFideId "2610167"]
[WhiteElo "2171"]
[BlackElo "2429"]
[Result "0-1"]
[Round "4"]
[TimeControl "180+1"]
[Date "2023.11.07"]
[WhiteClock "0:01:01"]
[BlackClock "0:00:16"]
[Board "134"]

1. e4 {[%clk 0:03:00]}  e5 {[%clk 0:02:51]} 2. Nf3 {[%clk 0:03:00]}  Nc6 {[%clk 0:02:51]} 3. Bc4 {[%clk 0:03:00]}  Be7 {[%clk 0:02:49]} 4. O-O {[%clk 0:02:56]}  Nf6 {[%clk 0:02:49]} 5. Nc3 {[%clk 0:02:56]}  O-O {[%clk 0:02:48]} 6. d4 {[%clk 0:02:49]}  d6 {[%clk 0:02:35]} 7. Bg5 {[%clk 0:02:40]}  h6 {[%clk 0:02:31]} 8. Bh4 {[%clk 0:02:35]}  Bg4 {[%clk 0:01:50]} 9. d5 {[%clk 0:02:31]}  Nd4 {[%clk 0:01:47]} 10. Be2 {[%clk 0:02:29]}  Nxe2+ {[%clk 0:01:47]} 11. Qxe2 {[%clk 0:02:27]}  Nxd5 {[%clk 0:01:36]} 12. Nxd5 {[%clk 0:02:08]}  Bxh4 {[%clk 0:01:36]} 13. h3 {[%clk 0:02:08]}  Bxf3 {[%clk 0:01:35]} 14. Qxf3 {[%clk 0:02:08]}  c6 {[%clk 0:01:36]} 15. Nc3 {[%clk 0:02:07]}  Qb6 {[%clk 0:01:26]} 16. b3 {[%clk 0:02:05]}  Rad8 {[%clk 0:01:24]} 17. Rad1 {[%clk 0:02:04]}  Qc5 {[%clk 0:01:01]} 18. Qd3 {[%clk 0:01:59]}  b5 {[%clk 0:00:53]} 19. Ne2 {[%clk 0:01:43]}  d5 {[%clk 0:00:48]} 20. c3 {[%clk 0:01:18]}  dxe4 {[%clk 0:00:29]} 21. Qxe4 {[%clk 0:01:17]}  Bxf2+ {[%clk 0:00:26]} 22. Kh1 {[%clk 0:01:17]}  f5 {[%clk 0:00:21]} 23. Qf3 {[%clk 0:01:13]}  e4 {[%clk 0:00:21]} 24. Qf4 {[%clk 0:01:10]}  Be3 {[%clk 0:00:20]} 25. Qh4 {[%clk 0:01:09]}  Bg5 {[%clk 0:00:16]} 26. Qg3 {[%clk 0:01:08]}  Qa3 {[%clk 0:00:08]} 27. Nd4 {[%clk 0:01:06]}  Qxa2 {[%clk 0:00:06]} 28. Ne6 {[%clk 0:01:02]}  Rxd1 {[%clk 0:00:07]} 29. Rxd1 {[%clk 0:00:56]}  Qxb3 {[%clk 0:00:07]} 30. Nxf8 {[%clk 0:00:56]}  Qxd1+ {[%clk 0:00:07]} 31. Kh2 {[%clk 0:00:55]}  Kxf8 {[%clk 0:00:07]} 32. Qb8+ {[%clk 0:00:56]}  Kf7 {[%clk 0:00:08]} 33. Qc7+ {[%clk 0:00:56]}  Be7 {[%clk 0:00:09]} 34. Qxc6 {[%clk 0:00:54]}  Qd6+ {[%clk 0:00:09]} 35. Qxd6 {[%clk 0:00:55]}  Bxd6+ {[%clk 0:00:10]} 36. Kg1 {[%clk 0:00:55]}  a5 {[%clk 0:00:11]} 37. Kf1 {[%clk 0:00:55]}  b4 {[%clk 0:00:12]} 38. Ke1 {[%clk 0:00:56]}  bxc3 {[%clk 0:00:13]} 39. Kd1 {[%clk 0:00:57]}  Bb4 {[%clk 0:00:13]} 40. Kc2 {[%clk 0:00:58]}  a4 {[%clk 0:00:14]} 41. Kb1 {[%clk 0:00:58]}  f4 {[%clk 0:00:14]} 42. Kc1 {[%clk 0:00:59]}  f3 {[%clk 0:00:15]} 43. Kc2 {[%clk 0:00:59]}  fxg2 {[%clk 0:00:15]} 44. h4 {[%clk 0:01:00]}  g1=Q {[%clk 0:00:15]} 45. h5 {[%clk 0:01:01]}  Qf2+ {[%clk 0:00:15]} 46. Kb1 {[%clk 0:01:01]}  Qb2# {[%clk 0:00:16]} 0-1


[Site "https://www.chess.com"]

[Event "Titled Tuesday Blitz November 07 Late 2023"]
[White "Bongo Akanga Ndjila, Barthelemy"]
[Black "WindWhistler11"]
[WhiteFideId "10609431"]
[WhiteElo "2022"]
[BlackElo "2421"]
[Result "0-1"]
[Round "4"]
[TimeControl "180+1"]
[Date "2023.11.07"]
[WhiteClock "0:00:00"]
[BlackClock "0:00:09"]
[Board "139"]

1. d4 {[%clk 0:02:32]}  Nf6 {[%clk 0:02:59]} 2. c4 {[%clk 0:02:31]}  e6 {[%clk 0:03:00]} 3. Nf3 {[%clk 0:02:31]}  c5 {[%clk 0:03:00]} 4. d5 {[%clk 0:02:31]}  exd5 {[%clk 0:03:01]} 5. cxd5 {[%clk 0:02:31]}  Bd6 {[%clk 0:03:02]} 6. Nc3 {[%clk 0:02:31]}  O-O {[%clk 0:03:03]} 7. Nd2 {[%clk 0:02:31]}  Re8 {[%clk 0:03:02]} 8. e4 {[%clk 0:02:30]}  Bc7 {[%clk 0:03:01]} 9. Be2 {[%clk 0:02:30]}  d6 {[%clk 0:03:01]} 10. O-O {[%clk 0:02:30]}  a6 {[%clk 0:03:02]} 11. a4 {[%clk 0:02:29]}  Nbd7 {[%clk 0:03:02]} 12. Nc4 {[%clk 0:02:28]}  Rb8 {[%clk 0:03:01]} 13. a5 {[%clk 0:02:27]}  Ne5 {[%clk 0:02:56]} 14. Nxe5 {[%clk 0:02:15]}  Rxe5 {[%clk 0:02:57]} 15. f4 {[%clk 0:02:16]}  Re8 {[%clk 0:02:54]} 16. Bf3 {[%clk 0:02:16]}  Bxa5 {[%clk 0:02:51]} 17. Bd2 {[%clk 0:02:08]}  Bxc3 {[%clk 0:02:48]} 18. Bxc3 {[%clk 0:02:07]}  Nxe4 {[%clk 0:02:49]} 19. Bxe4 {[%clk 0:02:05]}  Rxe4 {[%clk 0:02:49]} 20. f5 {[%clk 0:02:03]}  Qg5 {[%clk 0:02:41]} 21. Rf3 {[%clk 0:01:56]}  Bxf5 {[%clk 0:02:29]} 22. Ra4 {[%clk 0:01:33]}  Rxa4 {[%clk 0:02:12]} 23. Qxa4 {[%clk 0:01:32]}  Qc1+ {[%clk 0:02:04]} 24. Kf2 {[%clk 0:01:31]}  Qc2+ {[%clk 0:02:01]} 25. Qxc2 {[%clk 0:01:27]}  Bxc2 {[%clk 0:02:02]} 26. Rg3 {[%clk 0:01:26]}  Bg6 {[%clk 0:01:59]} 27. h4 {[%clk 0:01:25]}  h5 {[%clk 0:01:57]} 28. Rg5 {[%clk 0:01:24]}  Kf8 {[%clk 0:01:54]} 29. g4 {[%clk 0:01:23]}  b5 {[%clk 0:01:00]} 30. gxh5 {[%clk 0:01:22]}  b4 {[%clk 0:01:00]} 31. Bd2 {[%clk 0:00:56]}  Be4 {[%clk 0:00:53]} 32. Bf4 {[%clk 0:00:48]}  Rb6 {[%clk 0:00:48]} 33. Rg1 {[%clk 0:00:32]}  a5 {[%clk 0:00:43]} 34. h6 {[%clk 0:00:32]}  gxh6 {[%clk 0:00:40]} 35. Bxh6+ {[%clk 0:00:32]}  Ke8 {[%clk 0:00:37]} 36. Rg8+ {[%clk 0:00:28]}  Kd7 {[%clk 0:00:32]} 37. Rg5 {[%clk 0:00:17]}  a4 {[%clk 0:00:29]} 38. Ke3 {[%clk 0:00:16]}  Bc2 {[%clk 0:00:22]} 39. Rg2 {[%clk 0:00:14]}  b3 {[%clk 0:00:21]} 40. Rg7 {[%clk 0:00:10]}  Ke7 {[%clk 0:00:13]} 41. Bg5+ {[%clk 0:00:09]}  Kf8 {[%clk 0:00:13]} 42. Bf6 {[%clk 0:00:07]}  a3 {[%clk 0:00:08]} 43. bxa3 {[%clk 0:00:07]}  b2 {[%clk 0:00:08]} 44. Bxb2 {[%clk 0:00:00]}  Rxb2 {[%clk 0:00:09]} 0-1


[Site "https://www.chess.com"]

[Event "Titled Tuesday Blitz November 07 Late 2023"]
[White "Quirke, Jeffrey"]
[Black "Herman, Daniel"]
[WhiteFideId "2013029"]
[BlackFideId "30935008"]
[WhiteElo "2249"]
[BlackElo "2404"]
[Result "0-1"]
[Round "4"]
[TimeControl "180+1"]
[Date "2023.11.07"]
[WhiteClock "0:00:00"]
[BlackClock "0:00:18"]
[Board "144"]

1. e4 {[%clk 0:03:00]}  d6 {[%clk 0:02:56]} 2. d4 {[%clk 0:02:59]}  Nf6 {[%clk 0:02:56]} 3. Bd3 {[%clk 0:02:57]}  e5 {[%clk 0:02:55]} 4. c3 {[%clk 0:02:56]}  Nc6 {[%clk 0:02:54]} 5. d5 {[%clk 0:02:53]}  Nb8 {[%clk 0:02:50]} 6. c4 {[%clk 0:02:53]}  g6 {[%clk 0:02:48]} 7. Nc3 {[%clk 0:02:53]}  Bg7 {[%clk 0:02:48]} 8. Nge2 {[%clk 0:02:40]}  O-O {[%clk 0:02:49]} 9. h3 {[%clk 0:02:40]}  c6 {[%clk 0:02:45]} 10. O-O {[%clk 0:02:32]}  cxd5 {[%clk 0:02:44]} 11. cxd5 {[%clk 0:02:31]}  Nbd7 {[%clk 0:02:44]} 12. Be3 {[%clk 0:02:27]}  Nc5 {[%clk 0:02:37]} 13. b4 {[%clk 0:02:23]}  Nxd3 {[%clk 0:02:36]} 14. Qxd3 {[%clk 0:02:24]}  Nh5 {[%clk 0:02:33]} 15. Rac1 {[%clk 0:02:09]}  f5 {[%clk 0:02:30]} 16. f3 {[%clk 0:02:09]}  f4 {[%clk 0:02:23]} 17. Bf2 {[%clk 0:02:09]}  g5 {[%clk 0:02:16]} 18. Nb5 {[%clk 0:02:08]}  Rf7 {[%clk 0:01:57]} 19. Nxa7 {[%clk 0:02:08]}  Bd7 {[%clk 0:01:53]} 20. a4 {[%clk 0:01:43]}  Nf6 {[%clk 0:01:37]} 21. a5 {[%clk 0:01:41]}  h5 {[%clk 0:01:29]} 22. Bb6 {[%clk 0:01:41]}  Qe8 {[%clk 0:01:23]} 23. Kf2 {[%clk 0:01:33]}  g4 {[%clk 0:01:19]} 24. hxg4 {[%clk 0:01:32]}  hxg4 {[%clk 0:01:20]} 25. Ke1 {[%clk 0:01:32]}  Bf8 {[%clk 0:00:56]} 26. Kd2 {[%clk 0:01:30]}  Nh5 {[%clk 0:00:54]} 27. Rh1 {[%clk 0:01:16]}  Rh7 {[%clk 0:00:53]} 28. Rc7 {[%clk 0:01:08]}  Nf6 {[%clk 0:00:39]} 29. Rxh7 {[%clk 0:01:07]}  Kxh7 {[%clk 0:00:40]} 30. Nc3 {[%clk 0:01:02]}  Kg8 {[%clk 0:00:30]} 31. Nab5 {[%clk 0:00:53]}  Qh5 {[%clk 0:00:24]} 32. Rxb7 {[%clk 0:00:46]}  Qh2 {[%clk 0:00:23]} 33. Qe2 {[%clk 0:00:44]}  Nh5 {[%clk 0:00:22]} 34. Rxd7 {[%clk 0:00:37]}  Ng3 {[%clk 0:00:22]} 35. Qf2 {[%clk 0:00:31]}  Qh1 {[%clk 0:00:22]} 36. Qg1 {[%clk 0:00:19]}  Qh4 {[%clk 0:00:22]} 37. Nxd6 {[%clk 0:00:17]}  Qf6 {[%clk 0:00:21]} 38. Nc4 {[%clk 0:00:09]}  Rc8 {[%clk 0:00:20]} 39. Rc7 {[%clk 0:00:09]}  Rb8 {[%clk 0:00:20]} 40. Rc6 {[%clk 0:00:08]}  Qg7 {[%clk 0:00:19]} 41. Qh2 {[%clk 0:00:08]}  Nf1+ {[%clk 0:00:19]} 42. Kd3 {[%clk 0:00:07]}  Nxh2 {[%clk 0:00:20]} 43. a6 {[%clk 0:00:02]}  gxf3 {[%clk 0:00:19]} 44. gxf3 {[%clk 0:00:02]}  Nxf3 {[%clk 0:00:20]} 45. a7 {[%clk 0:00:03]}  Ra8 {[%clk 0:00:19]} 46. Nb5 {[%clk 0:00:00]}  Qg3 {[%clk 0:00:18]} 0-1


[Site "https://www.chess.com"]

[Event "Titled Tuesday Blitz November 07 Late 2023"]
[White "Flameboard08"]
[Black "Elbebiber"]
[WhiteElo "2590"]
[BlackElo "2107"]
[Result "1-0"]
[Round "4"]
[TimeControl "180+1"]
[Date "2023.11.07"]
[WhiteClock "0:00:09"]
[BlackClock "0:00:00"]
[Board "147"]

1. f4 {[%clk 0:02:57]}  f5 {[%clk 0:02:54]} 2. Nf3 {[%clk 0:02:57]}  Nf6 {[%clk 0:02:53]} 3. d3 {[%clk 0:02:56]}  e6 {[%clk 0:02:48]} 4. Nbd2 {[%clk 0:02:55]}  d6 {[%clk 0:02:35]} 5. e4 {[%clk 0:02:54]}  fxe4 {[%clk 0:02:33]} 6. dxe4 {[%clk 0:02:55]}  Nc6 {[%clk 0:02:29]} 7. c3 {[%clk 0:02:54]}  Be7 {[%clk 0:02:26]} 8. Bd3 {[%clk 0:02:54]}  e5 {[%clk 0:02:23]} 9. O-O {[%clk 0:02:52]}  exf4 {[%clk 0:02:20]} 10. Bc4 {[%clk 0:02:52]}  Ne5 {[%clk 0:02:18]} 11. Bb3 {[%clk 0:02:42]}  Bg4 {[%clk 0:02:16]} 12. h3 {[%clk 0:02:41]}  Bh5 {[%clk 0:02:16]} 13. Qe2 {[%clk 0:02:39]}  Qd7 {[%clk 0:02:13]} 14. a4 {[%clk 0:02:19]}  O-O-O {[%clk 0:01:56]} 15. a5 {[%clk 0:02:18]}  a6 {[%clk 0:01:56]} 16. Qf2 {[%clk 0:02:14]}  Kb8 {[%clk 0:01:45]} 17. Nd4 {[%clk 0:02:06]}  g5 {[%clk 0:01:30]} 18. Be6 {[%clk 0:01:54]}  Qe8 {[%clk 0:01:30]} 19. N2f3 {[%clk 0:01:52]}  Nxe4 {[%clk 0:01:23]} 20. Qe1 {[%clk 0:01:47]}  Nxf3+ {[%clk 0:01:20]} 21. Nxf3 {[%clk 0:01:44]}  Nc5 {[%clk 0:01:19]} 22. Bd5 {[%clk 0:01:32]}  Bf6 {[%clk 0:01:15]} 23. Qf2 {[%clk 0:01:30]}  Bf7 {[%clk 0:01:09]} 24. Bxf7 {[%clk 0:01:28]}  Qxf7 {[%clk 0:01:08]} 25. b4 {[%clk 0:01:28]}  Ne4 {[%clk 0:01:03]} 26. Qc2 {[%clk 0:01:27]}  Rhe8 {[%clk 0:01:01]} 27. Bb2 {[%clk 0:01:22]}  Ng3 {[%clk 0:01:00]} 28. Rf2 {[%clk 0:01:21]}  Re3 {[%clk 0:00:59]} 29. b5 {[%clk 0:01:16]}  Rde8 {[%clk 0:00:54]} 30. bxa6 {[%clk 0:01:16]}  bxa6 {[%clk 0:00:55]} 31. Rb1 {[%clk 0:01:13]}  Ka8 {[%clk 0:00:53]} 32. Qa4 {[%clk 0:01:12]}  Qd5 {[%clk 0:00:42]} 33. Kh2 {[%clk 0:00:26]}  g4 {[%clk 0:00:13]} 34. c4 {[%clk 0:00:22]}  Qb7 {[%clk 0:00:11]} 35. Bxf6 {[%clk 0:00:18]}  Qxb1 {[%clk 0:00:10]} 36. Qc6+ {[%clk 0:00:16]}  Qb7 {[%clk 0:00:10]} 37. Qd7 {[%clk 0:00:11]}  gxf3 {[%clk 0:00:09]} 38. Rb2 {[%clk 0:00:11]}  Qa7 {[%clk 0:00:00]} 39. Qc6+ {[%clk 0:00:09]} 1-0


[Site "https://www.chess.com"]

[Event "Titled Tuesday Blitz November 07 Late 2023"]
[White "Feliz Dotel, Dewar Bienvenido"]
[Black "Novikova, Galina"]
[WhiteFideId "6402801"]
[BlackFideId "4157095"]
[WhiteElo "2160"]
[BlackElo "2411"]
[Result "0-1"]
[Round "4"]
[TimeControl "180+1"]
[Date "2023.11.07"]
[WhiteClock "0:00:00"]
[BlackClock "0:00:14"]
[Board "151"]

1. d4 {[%clk 0:02:59]}  d5 {[%clk 0:02:58]} 2. e3 {[%clk 0:02:59]}  Bf5 {[%clk 0:02:53]} 3. Nf3 {[%clk 0:02:59]}  e6 {[%clk 0:02:50]} 4. c4 {[%clk 0:03:00]}  c6 {[%clk 0:02:48]} 5. Bd3 {[%clk 0:03:00]}  Bxd3 {[%clk 0:02:47]} 6. Qxd3 {[%clk 0:03:01]}  Nf6 {[%clk 0:02:48]} 7. O-O {[%clk 0:03:01]}  Bd6 {[%clk 0:02:45]} 8. b3 {[%clk 0:03:01]}  Nbd7 {[%clk 0:02:44]} 9. Ba3 {[%clk 0:03:00]}  Qe7 {[%clk 0:02:43]} 10. Bxd6 {[%clk 0:02:59]}  Qxd6 {[%clk 0:02:44]} 11. Nc3 {[%clk 0:02:59]}  O-O {[%clk 0:02:42]} 12. Rfe1 {[%clk 0:02:59]}  e5 {[%clk 0:02:35]} 13. cxd5 {[%clk 0:02:56]}  cxd5 {[%clk 0:02:30]} 14. dxe5 {[%clk 0:02:55]}  Nxe5 {[%clk 0:02:31]} 15. Nxe5 {[%clk 0:02:55]}  Qxe5 {[%clk 0:02:32]} 16. Red1 {[%clk 0:02:45]}  Rad8 {[%clk 0:02:26]} 17. Nb5 {[%clk 0:02:38]}  a6 {[%clk 0:02:14]} 18. Nd4 {[%clk 0:02:38]}  Ng4 {[%clk 0:02:09]} 19. Nf3 {[%clk 0:02:35]}  Qh5 {[%clk 0:02:04]} 20. h3 {[%clk 0:02:26]}  Nf6 {[%clk 0:02:03]} 21. Rac1 {[%clk 0:02:26]}  Rd7 {[%clk 0:01:59]} 22. Qd4 {[%clk 0:02:20]}  Re8 {[%clk 0:01:55]} 23. Rc2 {[%clk 0:02:10]}  h6 {[%clk 0:01:55]} 24. Rdc1 {[%clk 0:02:10]}  Ne4 {[%clk 0:01:46]} 25. Rc8 {[%clk 0:02:03]}  Rxc8 {[%clk 0:01:46]} 26. Rxc8+ {[%clk 0:02:01]}  Kh7 {[%clk 0:01:47]} 27. Qe5 {[%clk 0:01:54]}  Qxe5 {[%clk 0:01:30]} 28. Nxe5 {[%clk 0:01:53]}  Re7 {[%clk 0:01:31]} 29. Nd3 {[%clk 0:01:48]}  Rd7 {[%clk 0:01:25]} 30. Nc5 {[%clk 0:01:23]}  Nxc5 {[%clk 0:01:18]} 31. Rxc5 {[%clk 0:01:24]}  f6 {[%clk 0:01:13]} 32. Kf1 {[%clk 0:01:24]}  d4 {[%clk 0:01:12]} 33. exd4 {[%clk 0:01:23]}  Rxd4 {[%clk 0:01:13]} 34. Rc7 {[%clk 0:01:21]}  Rd2 {[%clk 0:01:14]} 35. a4 {[%clk 0:01:15]}  b5 {[%clk 0:01:00]} 36. axb5 {[%clk 0:01:14]}  axb5 {[%clk 0:01:01]} 37. Rc5 {[%clk 0:01:14]}  b4 {[%clk 0:00:53]} 38. Rc4 {[%clk 0:01:13]}  Rb2 {[%clk 0:00:48]} 39. Rxb4 {[%clk 0:01:13]}  f5 {[%clk 0:00:49]} 40. Rb6 {[%clk 0:01:12]}  g5 {[%clk 0:00:47]} 41. g4 {[%clk 0:01:07]}  f4 {[%clk 0:00:43]} 42. Kg2 {[%clk 0:01:06]}  Kg7 {[%clk 0:00:42]} 43. Kf3 {[%clk 0:01:06]}  Kh7 {[%clk 0:00:40]} 44. Rb7+ {[%clk 0:01:03]}  Kg6 {[%clk 0:00:41]} 45. Rb6+ {[%clk 0:00:59]}  Kg7 {[%clk 0:00:41]} 46. Rb8 {[%clk 0:00:59]}  Kg6 {[%clk 0:00:40]} 47. b4 {[%clk 0:00:59]}  Rb3+ {[%clk 0:00:39]} 48. Kg2 {[%clk 0:00:57]}  h5 {[%clk 0:00:38]} 49. b5 {[%clk 0:00:52]}  f3+ {[%clk 0:00:34]} 50. Kg1 {[%clk 0:00:42]}  h4 {[%clk 0:00:35]} 51. b6 {[%clk 0:00:42]}  Rb1+ {[%clk 0:00:34]} 52. Kh2 {[%clk 0:00:41]}  Rb2 {[%clk 0:00:35]} 53. b7 {[%clk 0:00:39]}  Kh7 {[%clk 0:00:30]} 54. Rf8 {[%clk 0:00:25]}  Rxb7 {[%clk 0:00:26]} 55. Rxf3 {[%clk 0:00:26]}  Kg6 {[%clk 0:00:26]} 56. Rc3 {[%clk 0:00:24]}  Rb6 {[%clk 0:00:20]} 57. Kg2 {[%clk 0:00:24]}  Rf6 {[%clk 0:00:21]} 58. Rc4 {[%clk 0:00:23]}  Ra6 {[%clk 0:00:21]} 59. f4 {[%clk 0:00:23]}  Ra2+ {[%clk 0:00:20]} 60. Kf3 {[%clk 0:00:21]}  Ra3+ {[%clk 0:00:20]} 61. Kg2 {[%clk 0:00:17]}  Ra2+ {[%clk 0:00:21]} 62. Kf1 {[%clk 0:00:16]}  gxf4 {[%clk 0:00:18]} 63. Rxf4 {[%clk 0:00:16]}  Rh2 {[%clk 0:00:16]} 64. Rf3 {[%clk 0:00:16]}  Kg5 {[%clk 0:00:16]} 65. Kg1 {[%clk 0:00:16]}  Ra2 {[%clk 0:00:17]} 66. Rf5+ {[%clk 0:00:15]}  Kg6 {[%clk 0:00:17]} 67. Rh5 {[%clk 0:00:13]}  Rb2 {[%clk 0:00:16]} 68. Rxh4 {[%clk 0:00:13]}  Kg5 {[%clk 0:00:17]} 69. Rh5+ {[%clk 0:00:13]}  Kf4 {[%clk 0:00:18]} 70. Rh8 {[%clk 0:00:11]}  Kf3 {[%clk 0:00:16]} 71. g5 {[%clk 0:00:07]}  Rb1+ {[%clk 0:00:15]} 72. Kh2 {[%clk 0:00:06]}  Rb2+ {[%clk 0:00:16]} 73. Kh1 {[%clk 0:00:00]}  Kg3 {[%clk 0:00:14]} 0-1


[Site "https://www.chess.com"]

[Event "Titled Tuesday Blitz November 07 Late 2023"]
[White "Dwilewicz, Katarzyna"]
[Black "Tarnowska, Aleksandra"]
[WhiteFideId "1148486"]
[BlackFideId "1180967"]
[WhiteElo "2355"]
[BlackElo "2151"]
[Result "1-0"]
[Round "4"]
[TimeControl "180+1"]
[Date "2023.11.07"]
[WhiteClock "0:00:29"]
[BlackClock "0:00:00"]
[Board "153"]

1. e4 {[%clk 0:02:59]}  c5 {[%clk 0:03:00]} 2. Nf3 {[%clk 0:02:58]}  e6 {[%clk 0:03:00]} 3. g3 {[%clk 0:02:58]}  d6 {[%clk 0:02:54]} 4. Bg2 {[%clk 0:02:58]}  Qc7 {[%clk 0:02:54]} 5. O-O {[%clk 0:02:58]}  Nc6 {[%clk 0:02:55]} 6. d4 {[%clk 0:02:58]}  cxd4 {[%clk 0:02:55]} 7. Nxd4 {[%clk 0:02:59]}  Nf6 {[%clk 0:02:51]} 8. c4 {[%clk 0:02:54]}  Be7 {[%clk 0:02:49]} 9. Nc3 {[%clk 0:02:54]}  a6 {[%clk 0:02:45]} 10. b3 {[%clk 0:02:54]}  O-O {[%clk 0:02:32]} 11. Bb2 {[%clk 0:02:54]}  Rd8 {[%clk 0:02:28]} 12. Rc1 {[%clk 0:02:53]}  Bd7 {[%clk 0:02:12]} 13. Nd5 {[%clk 0:02:29]}  exd5 {[%clk 0:01:27]} 14. cxd5 {[%clk 0:02:29]}  Rac8 {[%clk 0:01:21]} 15. dxc6 {[%clk 0:02:25]}  Bxc6 {[%clk 0:01:14]} 16. Qd3 {[%clk 0:02:15]}  Qa5 {[%clk 0:01:07]} 17. Nf5 {[%clk 0:02:11]}  Qc7 {[%clk 0:00:51]} 18. Rfd1 {[%clk 0:02:01]}  Ne8 {[%clk 0:00:29]} 19. Qe3 {[%clk 0:01:33]}  Qd7 {[%clk 0:00:23]} 20. Bd4 {[%clk 0:01:13]}  Qe6 {[%clk 0:00:22]} 21. Bb6 {[%clk 0:01:11]}  Rd7 {[%clk 0:00:21]} 22. Nd4 {[%clk 0:01:08]}  Qg6 {[%clk 0:00:17]} 23. Bh3 {[%clk 0:00:58]}  Rb8 {[%clk 0:00:11]} 24. Nxc6 {[%clk 0:00:53]}  bxc6 {[%clk 0:00:05]} 25. Bxd7 {[%clk 0:00:53]}  Nf6 {[%clk 0:00:03]} 26. Bf5 {[%clk 0:00:51]}  Qh5 {[%clk 0:00:03]} 27. Bc7 {[%clk 0:00:39]}  Rb7 {[%clk 0:00:02]} 28. Bxd6 {[%clk 0:00:38]}  Bd8 {[%clk 0:00:02]} 29. Be5 {[%clk 0:00:33]}  Bb6 {[%clk 0:00:00]} 30. Bxf6 {[%clk 0:00:29]} 1-0


[Site "https://www.chess.com"]

[Event "Titled Tuesday Blitz November 07 Late 2023"]
[White "Dodaro, Mattia"]
[Black "Burke, Paul"]
[WhiteFideId "28583400"]
[BlackFideId "2605767"]
[WhiteElo "2259"]
[BlackElo "1878"]
[Result "1-0"]
[Round "4"]
[TimeControl "180+1"]
[Date "2023.11.07"]
[WhiteClock "0:02:32"]
[BlackClock "0:00:59"]
[Board "160"]

1. Nc3 {[%clk 0:02:55]}  a6 {[%clk 0:02:59]} 2. e4 {[%clk 0:02:53]}  d6 {[%clk 0:02:59]} 3. Bc4 {[%clk 0:02:54]}  g6 {[%clk 0:02:58]} 4. Nf3 {[%clk 0:02:54]}  Bg7 {[%clk 0:02:58]} 5. d4 {[%clk 0:02:55]}  h6 {[%clk 0:02:58]} 6. h4 {[%clk 0:02:56]}  e6 {[%clk 0:02:58]} 7. Be3 {[%clk 0:02:56]}  Nd7 {[%clk 0:02:57]} 8. Qd2 {[%clk 0:02:56]}  Ne7 {[%clk 0:02:56]} 9. O-O-O {[%clk 0:02:57]}  b5 {[%clk 0:02:54]} 10. Bd3 {[%clk 0:02:58]}  Bb7 {[%clk 0:02:53]} 11. Kb1 {[%clk 0:02:57]}  c6 {[%clk 0:02:52]} 12. Ne2 {[%clk 0:02:55]}  Qc7 {[%clk 0:02:52]} 13. c3 {[%clk 0:02:56]}  O-O-O {[%clk 0:02:52]} 14. Nc1 {[%clk 0:02:51]}  e5 {[%clk 0:02:45]} 15. dxe5 {[%clk 0:02:50]}  dxe5 {[%clk 0:02:42]} 16. Ne1 {[%clk 0:02:48]}  Nf6 {[%clk 0:02:39]} 17. f3 {[%clk 0:02:48]}  Nh5 {[%clk 0:02:37]} 18. Qf2 {[%clk 0:02:49]}  Rd7 {[%clk 0:02:11]} 19. Nb3 {[%clk 0:02:46]}  Nf4 {[%clk 0:01:53]} 20. Bb6 {[%clk 0:02:42]}  Qb8 {[%clk 0:01:51]} 21. Ba7 {[%clk 0:02:40]}  Qc7 {[%clk 0:01:51]} 22. Nc5 {[%clk 0:02:41]}  Nxd3 {[%clk 0:01:46]} 23. Nexd3 {[%clk 0:02:40]}  Rdd8 {[%clk 0:01:40]} 24. Nb3 {[%clk 0:02:38]}  Rd7 {[%clk 0:01:36]} 25. Bb6 {[%clk 0:02:38]}  Qb8 {[%clk 0:01:36]} 26. Ndc5 {[%clk 0:02:38]}  Rxd1+ {[%clk 0:01:33]} 27. Rxd1 {[%clk 0:02:39]}  Re8 {[%clk 0:00:59]} 28. Qd2 {[%clk 0:02:32]} 1-0


[Site "https://www.chess.com"]

[Event "Titled Tuesday Blitz November 07 Late 2023"]
[White "Lutz, Igor Oscar"]
[Black "Cooper, Aaron"]
[WhiteFideId "2110806"]
[BlackFideId "2634945"]
[WhiteElo "1854"]
[BlackElo "2248"]
[Result "0-1"]
[Round "4"]
[TimeControl "180+1"]
[Date "2023.11.07"]
[WhiteClock "0:00:00"]
[BlackClock "0:00:25"]
[Board "161"]

1. d4 {[%clk 0:02:58]}  g6 {[%clk 0:02:59]} 2. c4 {[%clk 0:02:58]}  Bg7 {[%clk 0:03:00]} 3. Nc3 {[%clk 0:02:59]}  d6 {[%clk 0:03:00]} 4. e4 {[%clk 0:02:59]}  Nc6 {[%clk 0:03:01]} 5. Nf3 {[%clk 0:03:00]}  Bg4 {[%clk 0:03:00]} 6. Be3 {[%clk 0:02:53]}  Bxf3 {[%clk 0:03:00]} 7. gxf3 {[%clk 0:02:52]}  e5 {[%clk 0:03:01]} 8. d5 {[%clk 0:02:52]}  Nce7 {[%clk 0:03:01]} 9. Qd2 {[%clk 0:02:49]}  f5 {[%clk 0:03:01]} 10. Bg5 {[%clk 0:02:42]}  Qd7 {[%clk 0:02:56]} 11. O-O-O {[%clk 0:02:35]}  h6 {[%clk 0:02:45]} 12. Bxe7 {[%clk 0:02:33]}  Nxe7 {[%clk 0:02:45]} 13. Bd3 {[%clk 0:02:28]}  O-O-O {[%clk 0:02:44]} 14. Rhg1 {[%clk 0:02:27]}  Kb8 {[%clk 0:02:43]} 15. Kb1 {[%clk 0:02:26]}  Bf6 {[%clk 0:02:35]} 16. Qc2 {[%clk 0:02:15]}  Bg5 {[%clk 0:02:29]} 17. Qb3 {[%clk 0:02:04]}  Rhf8 {[%clk 0:02:18]} 18. Qa3 {[%clk 0:01:43]}  Nc8 {[%clk 0:02:10]} 19. c5 {[%clk 0:01:37]}  dxc5 {[%clk 0:01:58]} 20. Qxc5 {[%clk 0:01:37]}  fxe4 {[%clk 0:01:43]} 21. Bxe4 {[%clk 0:01:32]}  Nd6 {[%clk 0:01:36]} 22. h4 {[%clk 0:00:36]}  Be7 {[%clk 0:01:35]} 23. Qa5 {[%clk 0:00:28]}  Bxh4 {[%clk 0:01:23]} 24. Rxg6 {[%clk 0:00:26]}  Bxf2 {[%clk 0:01:22]} 25. Rc1 {[%clk 0:00:22]}  Bb6 {[%clk 0:01:21]} 26. Qb4 {[%clk 0:00:21]}  Rf4 {[%clk 0:01:14]} 27. Rxh6 {[%clk 0:00:20]}  Qg7 {[%clk 0:00:48]} 28. Rh7 {[%clk 0:00:15]}  Qg2 {[%clk 0:00:43]} 29. Na4 {[%clk 0:00:12]}  Nxe4 {[%clk 0:00:37]} 30. Nxb6 {[%clk 0:00:11]}  Nd2+ {[%clk 0:00:29]} 31. Ka1 {[%clk 0:00:10]}  Rxb4 {[%clk 0:00:27]} 32. Nd7+ {[%clk 0:00:00]}  Ka8 {[%clk 0:00:25]} 0-1


[Site "https://www.chess.com"]